fUST/lending_fUST_20251022
["ID","MTS","AMOUNT","RATE_DAILY","PERIOD"]
[392029730,1761111040435,-277.60489427,0.00030136,7]
[392029732,1761111040444,-213.39544201,0.00030136,7]
[392029734,1761111040453,-242.26528224,0.00030136,7]
[392029735,1761111040462,-500.0,0.00030136,7]
[392029737,1761111040472,-189.0705972,0.00030136,7]
[392029739,1761111040481,-204.22238251,0.00030136,7]
[392029741,1761111040490,-299.27091136,0.00030136,7]
[392029743,1761111040499,-360.68327025,0.00030136,7]
[392029745,1761111040509,-417.45835583,0.00030136,7]
[392029747,1761111040518,-1794.76,0.00030136,2]
[392029749,1761111040529,-287.29279828,0.00030136,7]
[392029751,1761111040538,-241.69439862,0.00030136,7]
[392029753,1761111040547,-162.53702627,0.00030136,7]
[392029755,1761111040556,-385.92509597,0.00030136,7]
[392029757,1761111040567,-175.28761425,0.00030136,7]
[392029759,1761111040576,-268.89927894,0.00030136,7]
[392029761,1761111040585,-414.98691223,0.00030136,7]
[392029763,1761111040595,-500.0,0.00030136,2]
[392029765,1761111040604,-253.27809085,0.00030136,7]
[392029767,1761111040618,-367.64494753,0.00030136,7]
[392029769,1761111040627,-416.32949053,0.00030136,7]
[392029771,1761111040637,-422.20912532,0.00030136,7]
[392029774,1761111040646,-500.0,0.00030136,7]
[392029775,1761111040656,-500.0,0.00030136,7]
[392029777,1761111040665,-380.03902557,0.00030136,7]
[392029780,1761111040675,-612.00323449,0.00030136,7]
[392029782,1761111040685,-351.52003033,0.00030136,7]
[392029783,1761111040694,-500.0,0.00030136,7]
[392029785,1761111040703,-422.00151591,0.00030136,7]
[392029787,1761111040713,-500.0,0.00030136,7]
[392029789,1761111040722,-238.27158002,0.00030136,7]
[392029791,1761111040731,-322.89402484,0.00030136,7]
[392029793,1761111040741,-331.32724433,0.00030136,7]
[392029796,1761111040750,-205.41868019,0.00030136,7]
[392029798,1761111040760,-425.23018006,0.00030136,7]
[392029800,1761111040769,-195.40019124,0.00030136,7]
[392029802,1761111040778,-450.13093254,0.00030136,7]
[392029804,1761111040789,-200.0,0.00030136,7]
[392029806,1761111040798,-222.15435582,0.00030136,7]
[392029808,1761111040807,-1000.0,0.00030136,2]
[392029810,1761111040816,-500.0,0.00030136,7]
[392029812,1761111040825,-501.21275149,0.00030136,7]
[392029814,1761111040834,-500.0,0.00030136,2]
[392029816,1761111040843,-420.52358588,0.00030136,7]
[392029818,1761111040852,-248.84257755,0.00030136,7]
[392029819,1761111040864,-500.0,0.00030136,7]
[392029822,1761111040873,-351.92241953,0.00030136,7]
[392029823,1761111040882,-309.60701034,0.00030136,7]
[392029825,1761111040891,-500.0,0.00030136,7]
[392029827,1761111040900,-362.76359806,0.00030136,7]
[392029829,1761111040909,-500.0,0.00030136,7]
[392029831,1761111040918,-426.38365562,0.00030136,7]
[392029833,1761111040927,-582.70792291,0.00030136,7]
[392029835,1761111040936,-510.19784801,0.00030136,7]
[392029837,1761111040949,-360.20200319,0.00030136,7]
[392029839,1761111040958,-253.865749,0.00030136,7]
[392029841,1761111040967,-266.14660862,0.00030136,7]
[392029843,1761111040976,-500.0,0.00030136,7]
[392029845,1761111040987,-500.0,0.00030136,7]
[392029847,1761111040996,-387.22821303,0.00030136,7]
[392029849,1761111041005,-500.0,0.00030136,7]
[392029851,1761111041014,-500.0,0.00030136,7]
[392029853,1761111041025,-357.58399041,0.00030136,7]
[392029855,1761111041035,-401.64944066,0.00030136,7]
[392029857,1761111041044,-444.69651408,0.00030136,7]
[392029859,1761111041053,-362.19474942,0.00030136,7]
[392029861,1761111041063,-500.0,0.00030136,7]
[392029863,1761111041072,-400.87608033,0.00030136,7]
[392029865,1761111041081,-412.47532101,0.00030136,7]
[392029866,1761111041091,-1000.0,0.00030136,2]
[392029868,1761111041100,-312.37388576,0.00030136,7]
[392029869,1761111041110,-500.0,0.00030136,7]
[392029871,1761111041120,-229.89190728,0.00030136,7]
[392029873,1761111041130,-405.15904943,0.00030136,7]
[392029874,1761111041139,-158.56603055,0.00030136,7]
[392029876,1761111041148,-567.93807335,0.00030136,7]
[392029878,1761111041157,-157.36464837,0.00030136,7]
[392029879,1761111041166,-294.63469225,0.00030136,7]
[392029880,1761111041176,-438.172577,0.00030136,7]
[392029881,1761111041186,-500.0,0.00030136,7]
[392029882,1761111041195,-344.28543436,0.00030136,7]
[392029883,1761111041205,-269.16192923,0.00030136,7]
[392029884,1761111041214,-314.89028414,0.00030136,7]
[392029885,1761111041223,-435.58932894,0.00030136,7]
[392029886,1761111041233,-500.0,0.00030136,6]
[392029887,1761111041243,-162.57504482,0.00030136,7]
[392029888,1761111041252,-500.0,0.00030136,7]
[392029889,1761111041262,-500.0,0.00030136,7]
[392029890,1761111041271,-235.14490279,0.00030136,7]
[392029891,1761111041282,-500.0,0.00030136,7]
[392029892,1761111041293,-500.0,0.00030136,7]
[392029893,1761111041302,-500.0,0.00030136,7]
[392029894,1761111041311,-460.0,0.00030136,7]
[392029895,1761111041320,-500.0,0.00030136,7]
[392029896,1761111041330,-500.0,0.00030136,7]
[392029897,1761111041339,-1118.75,0.00030136,3]
[392029898,1761111041349,-500.0,0.00030136,7]
[392029899,1761111041360,-350.53803323,0.00030136,7]
[392029900,1761111041369,-2588.4,0.00030136,2]
[392029901,1761111041379,-500.0,0.00030136,7]
[392029902,1761111041388,-507.5189185,0.00030136,7]
[392029903,1761111041397,-500.0,0.00030136,7]
[392029904,1761111041406,-267.83676891,0.00030136,7]
[392029905,1761111041415,-368.53541687,0.00030136,7]
[392029906,1761111041424,-500.0,0.00030136,2]
[392029907,1761111041433,-450.148172,0.00030136,7]
[392029908,1761111041443,-500.0,0.00030136,7]
[392029909,1761111041452,-611.11,0.00030136,7]
[392029910,1761111041461,-500.0,0.00030136,7]
[392029911,1761111041470,-450.04226646,0.00030136,7]
[392029912,1761111041479,-353.46987684,0.00030136,7]
[392029913,1761111041488,-500.0,0.00030136,7]
[392029914,1761111041497,-310.89209667,0.00030136,7]
[392029915,1761111041506,-553.31947537,0.00030136,7]
[392029916,1761111041515,-326.35246607,0.00030136,7]
[392029917,1761111041523,-500.0,0.00030136,7]
[392029918,1761111041532,-500.0,0.00030136,2]
[392029919,1761111041541,-500.0,0.00030136,7]
[392029920,1761111041550,-581.70552696,0.00030136,7]
[392029921,1761111041559,-370.15168552,0.00030136,7]
[392029922,1761111041568,-175.25191809,0.00030136,7]
[392029923,1761111041577,-392.6280856,0.00030136,7]
[392029924,1761111041587,-224.74968221,0.00030136,7]
[392029925,1761111041595,-1047.70733852,0.00030138,120]
[392029926,1761111041605,-330.832966,0.00030176,2]
[392029927,1761111041615,-152.138354,0.00030176,2]
[392029928,1761111041624,-155.709285,0.00030176,2]
[392029929,1761111041634,-671.03780639,0.0003022,2]
[392029930,1761111041643,-500.0,0.00030259,15]
[392029931,1761111041652,-317.27842763,0.00030274,39]
[392029932,1761111041661,-1809.23,0.000303,2]
[392029933,1761111041671,-14122.43819577,0.0003031,3]
[392029934,1761111041679,-5000.0,0.00030383,2]
[392029935,1761111041688,-540.0,0.0003041,7]
[392029936,1761111041698,-1364.92,0.0003041,7]
[392029937,1761111041707,-298.40476063,0.0003041,7]
[392029938,1761111041716,-500.0,0.0003041,7]
[392029939,1761111041725,-300.35151413,0.0003041,7]
[392029940,1761111041734,-500.0,0.0003041,7]
[392029941,1761111041743,-500.0,0.0003041,7]
[392029942,1761111041753,-500.0,0.0003041,2]
[392029943,1761111041762,-500.0,0.0003041,7]
[392029944,1761111041772,-500.0,0.0003041,7]
[392029945,1761111041781,-213.38915633,0.0003041,7]
[392029946,1761111041791,-516.12,0.0003041,7]
[392029947,1761111041800,-500.0,0.0003041,7]
[392029948,1761111041809,-1188.42,0.0003041,7]
[392029949,1761111041819,-500.0,0.0003041,7]
[392029950,1761111041828,-500.0,0.0003041,2]
[392029951,1761111041837,-552.86611868,0.0003041,7]
[392029952,1761111041846,-314.2258727,0.0003041,7]
[392029953,1761111041855,-500.0,0.0003041,7]
[392029954,1761111041867,-500.0,0.0003041,7]
[392029955,1761111041876,-215.30403401,0.0003041,7]
[392029956,1761111041885,-500.0,0.0003041,7]
[392029957,1761111041894,-1000.0,0.0003041,2]
[392029958,1761111041903,-500.0,0.0003041,7]
[392029959,1761111041913,-1794.76,0.0003041,2]
[392029960,1761111041922,-500.0,0.0003041,2]
[392029961,1761111041931,-500.0,0.0003041,7]
[392029962,1761111041942,-500.0,0.0003041,7]
[392029963,1761111041953,-500.0,0.0003041,7]
[392029964,1761111041962,-500.0,0.0003041,7]
[392029965,1761111041971,-200.0,0.0003041,7]
[392029966,1761111041980,-1000.0,0.0003041,2]
[392029967,1761111041990,-500.0,0.0003041,7]
[392029968,1761111041999,-500.0,0.0003041,2]
[392029969,1761111042008,-500.0,0.0003041,7]
[392029970,1761111042019,-500.0,0.0003041,7]
[392029971,1761111042029,-500.0,0.0003041,7]
[392029972,1761111042038,-500.0,0.0003041,7]
[392029973,1761111042048,-500.0,0.0003041,7]
[392029974,1761111042057,-500.0,0.0003041,7]
[392029975,1761111042066,-500.0,0.0003041,7]
[392029976,1761111042075,-500.0,0.0003041,7]
[392029977,1761111042085,-561.61499378,0.0003041,2]
[392029978,1761111042094,-500.0,0.0003041,7]
[392029979,1761111042103,-500.0,0.0003041,7]
[392029980,1761111042113,-500.0,0.0003041,6]
[392029981,1761111042123,-500.0,0.0003041,7]
[392029982,1761111042132,-258.79007502,0.0003041,7]
[392029983,1761111042141,-500.0,0.0003041,7]
[392029984,1761111042151,-500.0,0.0003041,7]
[392029985,1761111042160,-500.0,0.0003041,7]
[392029986,1761111042169,-500.0,0.0003041,7]
[392029987,1761111042178,-500.0,0.0003041,7]
[392029988,1761111042188,-1118.75,0.0003041,3]
[392029989,1761111042197,-2588.4,0.0003041,2]
[392029990,1761111042206,-500.0,0.0003041,7]
[392029991,1761111042216,-404.24577398,0.0003041,7]
[392029992,1761111042225,-500.0,0.0003041,7]
[392029993,1761111042235,-611.11,0.0003041,7]
[392029994,1761111042244,-500.0,0.0003041,7]
[392029995,1761111042253,-343.47414822,0.0003041,7]
[392029996,1761111042262,-500.0,0.0003041,7]
[392029997,1761111042272,-500.0,0.0003041,2]
[392029998,1761111042281,-1396.11950418,0.00030459,2]
[392029999,1761111042290,-823.0,0.00030489,2]
[392030000,1761111042300,-1137.89,0.000305,7]
[392030001,1761111042309,-983.0,0.00030572,2]
[392030002,1761111042318,-632.0,0.00030572,2]
[392030003,1761111042327,-2164.0,0.00030572,2]
[392030004,1761111042337,-411.0,0.00030572,2]
[392030005,1761111042347,-429.892,0.00030572,2]
[392030006,1761111042356,-1364.92,0.00030684,7]
[392030007,1761111042367,-500.0,0.00030684,7]
[392030008,1761111042377,-500.0,0.00030684,7]
[392030009,1761111042386,-500.0,0.00030684,7]
[392030010,1761111042395,-500.0,0.00030684,2]
[392030011,1761111042405,-500.0,0.00030684,7]
[392030012,1761111042414,-500.0,0.00030684,7]
[392030013,1761111042424,-516.12,0.00030684,7]
[392030014,1761111042433,-500.0,0.00030684,7]
[392030015,1761111042443,-1188.42,0.00030684,7]
[392030016,1761111042452,-500.0,0.00030684,7]
[392030017,1761111042460,-500.0,0.00030684,2]
[392030018,1761111042470,-500.0,0.00030684,7]
[392030019,1761111042479,-500.0,0.00030684,7]
[392030020,1761111042489,-500.0,0.00030684,7]
[392030021,1761111042498,-1000.0,0.00030684,2]
[392030022,1761111042507,-500.0,0.00030684,7]
[392030023,1761111042516,-1794.76,0.00030684,2]
[392030024,1761111042526,-500.0,0.00030684,2]
[392030025,1761111042535,-500.0,0.00030684,7]
[392030026,1761111042545,-500.0,0.00030684,7]
[392030027,1761111042554,-500.0,0.00030684,7]
[392030028,1761111042563,-500.0,0.00030684,7]
[392030029,1761111042573,-200.0,0.00030684,7]
[392030030,1761111042582,-1000.0,0.00030684,2]
[392030031,1761111042591,-500.0,0.00030684,7]
[392030032,1761111042600,-504.42236108,0.00030684,2]
[392030033,1761111042611,-500.0,0.00030684,7]
[392030034,1761111042620,-500.0,0.00030684,7]
[392030035,1761111042630,-500.0,0.00030684,7]
[392030036,1761111042639,-500.0,0.00030684,7]
[392030037,1761111042648,-594.53349554,0.00030684,7]
[392030038,1761111042657,-500.0,0.00030684,7]
[392030039,1761111042666,-500.0,0.00030684,7]
[392030040,1761111042675,-500.0,0.00030684,7]
[392030041,1761111042684,-500.0,0.00030684,7]
[392030042,1761111042694,-583.43005014,0.00030684,7]
[392030043,1761111042703,-500.0,0.00030684,6]
[392030044,1761111042713,-500.0,0.00030684,7]
[392030045,1761111042722,-326.26847348,0.00030684,7]
[392030046,1761111042732,-500.0,0.00030684,7]
[392030047,1761111042742,-500.0,0.00030684,7]
[392030048,1761111042751,-500.0,0.00030684,7]
[392030049,1761111042760,-500.0,0.00030684,7]
[392030050,1761111042770,-1118.75,0.00030684,3]
[392030051,1761111042779,-2588.4,0.00030684,2]
[392030052,1761111042789,-500.0,0.00030684,7]
[392030053,1761111042798,-500.0,0.00030684,7]
[392030054,1761111042807,-611.11,0.00030684,7]
[392030055,1761111042816,-366.80500749,0.00030684,7]
[392030056,1761111042825,-500.0,0.00030684,7]
[392030057,1761111042834,-500.0,0.00030684,2]
[392030058,1761111042844,-9603.04,0.000307,7]
[392030059,1761111042853,-600.0,0.00030738,30]
[392030060,1761111042864,-150.0,0.00030792,30]
[392030061,1761111042873,-500.0,0.00030807,15]
[392030062,1761111042882,-800.0,0.00030808,2]
[392030063,1761111042892,-160.0,0.00030909,3]
[392030064,1761111042901,-481.06067399,0.00030919,2]
[392030065,1761111042910,-500.46,0.00030924,7]
[392030066,1761111043034,-1364.92,0.00030958,7]
[392030067,1761111043045,-500.0,0.00030958,7]
[392030068,1761111043055,-500.0,0.00030958,7]
[392030069,1761111043065,-500.0,0.00030958,7]
[392030070,1761111043074,-500.0,0.00030958,2]
[392030071,1761111043084,-500.0,0.00030958,7]
[392030072,1761111043093,-500.0,0.00030958,7]
[392030073,1761111043103,-516.12,0.00030958,7]
[392030074,1761111043115,-500.0,0.00030958,7]
[392030075,1761111043124,-1188.42,0.00030958,7]
[392030076,1761111043134,-500.0,0.00030958,7]
[392030077,1761111043143,-500.0,0.00030958,2]
[392030078,1761111043153,-330.832966,0.00030958,6]
[392030079,1761111043162,-500.0,0.00030958,7]
[392030080,1761111043172,-500.0,0.00030958,7]
[392030081,1761111043182,-267.83313999,0.00030958,7]
[392030082,1761111043191,-542.6973392,0.00030958,7]
[392030083,1761111043201,-1794.76,0.00030958,2]
[392030084,1761111043210,-514.17782849,0.00030958,2]
[392030085,1761111043220,-500.0,0.00030958,7]
[392030086,1761111043229,-500.0,0.00030958,7]
[392030087,1761111043238,-500.0,0.00030958,7]
[392030088,1761111043248,-500.0,0.00030958,7]
[392030089,1761111043257,-200.0,0.00030958,7]
[392030090,1761111043267,-1000.0,0.00030958,2]
[392030091,1761111043276,-500.0,0.00030958,7]
[392030092,1761111043285,-500.0,0.00030958,7]
[392030093,1761111043294,-500.0,0.00030958,7]
[392030094,1761111043303,-500.0,0.00030958,7]
[392030095,1761111043312,-500.0,0.00030958,7]
[392030096,1761111043321,-507.59927262,0.00030958,7]
[392030100,1761111043331,-287.39939124,0.00030958,7]
[392030102,1761111043340,-500.0,0.00030958,7]
[392030103,1761111043349,-500.0,0.00030958,7]
[392030105,1761111043358,-500.0,0.00030958,6]
[392030107,1761111043368,-500.0,0.00030958,7]
[392030109,1761111043377,-602.25293349,0.00030958,7]
[392030111,1761111043387,-500.0,0.00030958,7]
[392030114,1761111043396,-548.2556978,0.00030958,7]
[392030118,1761111043405,-1118.75,0.00030958,3]
[392030121,1761111043413,-2588.4,0.00030958,2]
[392030126,1761111043423,-500.0,0.00030958,7]
[392030130,1761111043432,-500.0,0.00030958,7]
[392030134,1761111043441,-611.11,0.00030958,7]
[392030137,1761111043450,-338.54362735,0.00030958,7]
[392030139,1761111043459,-500.0,0.00030958,2]
[392030142,1761111043468,-160.0,0.00031,15]
[392030145,1761111043478,-1108.60284002,0.00031,2]
[392030147,1761111043487,-420.0,0.00031,14]
[392030149,1761111043496,-30000.0,0.0003112,2]
[392030152,1761111043505,-179.65864857,0.00031146,6]
[392030156,1761111043514,-1364.92,0.00031232,7]
[392030160,1761111043524,-500.0,0.00031232,7]
[392030162,1761111043533,-500.0,0.00031232,7]
[392030165,1761111043542,-500.0,0.00031232,7]
[392030167,1761111043551,-159.07657945,0.00031232,2]
[392030169,1761111043560,-500.0,0.00031232,7]
[392030171,1761111043569,-500.0,0.00031232,7]
[392030173,1761111043580,-516.12,0.00031232,7]
[392030175,1761111043590,-500.0,0.00031232,7]
[392030177,1761111043599,-1188.42,0.00031232,7]
[392030179,1761111043608,-500.0,0.00031232,7]
[392030181,1761111043618,-500.0,0.00031232,7]
[392030183,1761111043627,-1794.76,0.00031232,2]
[392030185,1761111043637,-500.0,0.00031232,7]
[392030187,1761111043646,-500.0,0.00031232,7]
[392030189,1761111043655,-500.0,0.00031232,7]
[392030191,1761111043665,-500.0,0.00031232,7]
[392030193,1761111043674,-200.0,0.00031232,7]
[392030196,1761111043684,-1000.0,0.00031232,2]
[392030199,1761111043693,-500.0,0.00031232,7]
[392030201,1761111043703,-500.0,0.00031232,7]
[392030204,1761111043712,-500.0,0.00031232,7]
[392030206,1761111043721,-500.0,0.00031232,7]
[392030207,1761111043730,-500.0,0.00031232,7]
[392030210,1761111043739,-500.0,0.00031232,7]
[392030212,1761111043748,-500.0,0.00031232,6]
[392030214,1761111043757,-500.0,0.00031232,7]
[392030216,1761111043766,-500.0,0.00031232,7]
[392030218,1761111043775,-1118.75,0.00031232,3]
[392030220,1761111043784,-2588.4,0.00031232,2]
[392030222,1761111043793,-500.0,0.00031232,7]
[392030224,1761111043803,-500.0,0.00031232,7]
[392030226,1761111043812,-611.11,0.00031232,7]
[392030228,1761111043821,-500.0,0.00031232,2]
[392030229,1761111043830,-330.832966,0.00031287,7]
[392030230,1761111043840,-152.138354,0.00031287,7]
[392030231,1761111043849,-330.832966,0.00031302,6]
[392030232,1761111043859,-152.138354,0.00031302,6]
[392030233,1761111043868,-500.0,0.00031355,15]
[392030234,1761111043877,-1364.92,0.00031506,7]
[392030235,1761111043886,-500.0,0.00031506,7]
[392030236,1761111043895,-500.0,0.00031506,7]
[392030237,1761111043904,-219.05821306,0.00031506,7]
[392030238,1761111043913,-500.0,0.00031506,7]
[392030239,1761111043923,-500.0,0.00031506,7]
[392030240,1761111043932,-516.12,0.00031506,7]
[392030241,1761111043942,-500.0,0.00031506,7]
[392030243,1761111043954,-1188.42,0.00031506,7]
[392030244,1761111043963,-500.0,0.00031506,7]
[392030245,1761111043973,-500.0,0.00031506,7]
[392030246,1761111043983,-1794.76,0.00031506,2]
[392030247,1761111043992,-500.0,0.00031506,7]
[392030248,1761111044001,-500.0,0.00031506,7]
[392030249,1761111044010,-500.0,0.00031506,7]
[392030250,1761111044022,-500.0,0.00031506,7]
[392030251,1761111044031,-200.0,0.00031506,7]
[392030252,1761111044040,-1000.0,0.00031506,2]
[392030253,1761111044050,-500.0,0.00031506,7]
[392030254,1761111044059,-500.0,0.00031506,7]
[392030255,1761111044068,-500.0,0.00031506,7]
[392030256,1761111044077,-531.02707558,0.00031506,7]
[392030257,1761111044086,-500.0,0.00031506,6]
[392030258,1761111044096,-228.13195409,0.00031506,7]
[392030259,1761111044105,-500.0,0.00031506,7]
[392030260,1761111044115,-1118.75,0.00031506,3]
[392030261,1761111044124,-2588.4,0.00031506,2]
[392030262,1761111044134,-500.0,0.00031506,7]
[392030263,1761111044143,-500.0,0.00031506,7]
[392030264,1761111044153,-611.11,0.00031506,7]
[392030265,1761111044162,-500.0,0.00031506,2]
[392030266,1761111044171,-250.0,0.0003158,2]
[392030267,1761111044180,-1809.23,0.000316,2]
[392030268,1761111044190,-154.0,0.000316,120]
[392030269,1761111044199,-658.38,0.000316,2]
[392030270,1761111044208,-330.832966,0.00031646,6]
[392030271,1761111044217,-152.138354,0.00031646,6]
[392030272,1761111044226,-153.0,0.00031715,2]
[392030273,1761111044235,-153.0,0.00031715,2]
[392030274,1761111044244,-153.0,0.00031715,2]
[392030275,1761111044254,-153.0,0.00031715,2]
[392030276,1761111044263,-153.0,0.00031715,2]
[392030277,1761111044272,-153.0,0.00031715,2]
[392030278,1761111044282,-153.0,0.00031715,2]
[392030279,1761111044291,-153.0,0.00031715,2]
[392030280,1761111044300,-153.0,0.00031715,2]
[392030281,1761111044309,-153.0,0.00031715,2]
[392030282,1761111044317,-153.0,0.00031715,2]
[392030283,1761111044326,-153.0,0.00031715,2]
[392030284,1761111044335,-1364.92,0.0003178,7]
[392030285,1761111044345,-500.0,0.0003178,7]
[392030286,1761111044354,-500.0,0.0003178,7]
[392030287,1761111044363,-500.0,0.0003178,7]
[392030288,1761111044372,-500.0,0.0003178,7]
[392030289,1761111044382,-516.12,0.0003178,7]
[392030290,1761111044390,-500.0,0.0003178,7]
[392030291,1761111044399,-1188.42,0.0003178,7]
[392030292,1761111044408,-500.0,0.0003178,7]
[392030293,1761111044418,-500.0,0.0003178,7]
[392030294,1761111044427,-1794.76,0.0003178,2]
[392030295,1761111044435,-500.0,0.0003178,7]
[392030296,1761111044444,-500.0,0.0003178,7]
[392030297,1761111044454,-500.0,0.0003178,7]
[392030298,1761111044463,-500.0,0.0003178,7]
[392030299,1761111044472,-200.0,0.0003178,7]
[392030300,1761111044480,-1000.0,0.0003178,2]
[392030301,1761111044489,-500.0,0.0003178,7]
[392030302,1761111044498,-500.0,0.0003178,7]
[392030303,1761111044508,-500.0,0.0003178,7]
[392030304,1761111044517,-500.0,0.0003178,6]
[392030305,1761111044526,-500.0,0.0003178,7]
[392030306,1761111044535,-1118.75,0.0003178,3]
[392030307,1761111044544,-2588.4,0.0003178,2]
[392030308,1761111044553,-500.0,0.0003178,7]
[392030309,1761111044562,-500.0,0.0003178,7]
[392030310,1761111044571,-611.11,0.0003178,7]
[392030311,1761111044580,-500.0,0.0003178,2]
[392030312,1761111044589,-1137.89,0.000318,7]
[392030313,1761111044599,-33100.36424696,0.000319,2]
[392030314,1761111044609,-500.0,0.00031902,15]
[392030315,1761111044620,-1396.11950418,0.00031904,2]
[392030316,1761111044629,-519.37524094,0.00031919,2]
[392030317,1761111044638,-330.832966,0.0003199,6]
[392030318,1761111044648,-152.138354,0.0003199,6]
[392030319,1761111044657,-155.709285,0.0003199,6]
[392030320,1761111044665,-160.0,0.00032,15]
[392030321,1761111044674,-160.0,0.00032,15]
[392030322,1761111044683,-160.0,0.00032,15]
[392030323,1761111044692,-1000.59911718,0.00032,5]
[392030324,1761111044701,-28964.86495792,0.00032001,5]
[392030325,1761111044710,-1364.92,0.00032054,7]
[392030326,1761111044719,-335.1033466,0.00032054,7]
[392030327,1761111044729,-500.0,0.00032054,7]
[392030328,1761111044738,-500.0,0.00032054,7]
[392030329,1761111044747,-516.12,0.00032054,7]
[392030330,1761111044756,-500.0,0.00032054,7]
[392030331,1761111044765,-1188.42,0.00032054,7]
[392030332,1761111044774,-500.0,0.00032054,7]
[392030333,1761111044783,-500.0,0.00032054,7]
[392030334,1761111044792,-1794.76,0.00032054,2]
[392030335,1761111044801,-500.0,0.00032054,7]
[392030336,1761111044811,-500.0,0.00032054,7]
[392030337,1761111044820,-200.0,0.00032054,7]
[392030338,1761111044829,-1000.0,0.00032054,2]
[392030339,1761111044838,-519.88438731,0.00032054,7]
[392030340,1761111044848,-500.0,0.00032054,7]
[392030341,1761111044857,-500.0,0.00032054,7]
[392030342,1761111044867,-561.97570352,0.00032054,6]
[392030343,1761111044876,-303.76715868,0.00032054,7]
[392030344,1761111044885,-1118.75,0.00032054,3]
[392030345,1761111044895,-2588.4,0.00032054,2]
[392030346,1761111044904,-500.0,0.00032054,7]
[392030347,1761111044913,-500.0,0.00032054,7]
[392030348,1761111044922,-611.11,0.00032054,7]
[392030349,1761111044931,-500.0,0.00032054,2]
[392030350,1761111044941,-437.94,0.00032155,15]
[392030351,1761111044953,-500.0,0.00032184,7]
[392030352,1761111044962,-213.37108463,0.00032196,2]
[392030353,1761111044971,-500.0,0.00032235,7]
[392030354,1761111044982,-437.94,0.00032255,15]
[392030355,1761111044991,-1364.92,0.00032328,7]
[392030356,1761111045000,-500.0,0.00032328,7]
[392030357,1761111045009,-516.12,0.00032328,7]
[392030358,1761111045019,-500.0,0.00032328,7]
[392030359,1761111045029,-1188.42,0.00032328,7]
[392030360,1761111045038,-214.9295836,0.00032328,7]
[392030361,1761111045047,-500.0,0.00032328,7]
[392030362,1761111045057,-1794.76,0.00032328,2]
[392030363,1761111045066,-500.0,0.00032328,7]
[392030364,1761111045075,-500.0,0.00032328,7]
[392030365,1761111045085,-200.0,0.00032328,7]
[392030366,1761111045094,-1000.0,0.00032328,2]
[392030367,1761111045103,-500.0,0.00032328,7]
[392030368,1761111045112,-500.0,0.00032328,7]
[392030369,1761111045122,-1118.75,0.00032328,3]
[392030370,1761111045131,-2588.4,0.00032328,2]
[392030371,1761111045140,-500.0,0.00032328,7]
[392030372,1761111045150,-500.0,0.00032328,7]
[392030373,1761111045160,-611.11,0.00032328,7]
[392030374,1761111045169,-500.0,0.00032328,2]
[392030375,1761111045178,-161.720033,0.00032334,6]
[392030376,1761111045187,-330.832966,0.00032334,6]
[392030377,1761111045197,-152.138354,0.00032334,6]
[392030378,1761111045207,-155.709285,0.00032334,6]
[392030379,1761111045216,-437.94,0.00032355,15]
[392030380,1761111045226,-330.832966,0.00032437,7]